fUST/lending_fUST_20250404
["ID","MTS","AMOUNT","RATE_DAILY","PERIOD"]
[357110079,1743748246740,-294.077888,0.00017592,2]
[357110081,1743748246749,-7622.08,0.00017681,2]
[357110083,1743748246759,-500.0,0.00017681,2]
[357110085,1743748246769,-511.23,0.00017681,2]
[357110087,1743748246779,-3003.13,0.00017681,2]
[357110089,1743748246789,-500.0,0.00017681,2]
[357110090,1743748246799,-500.0,0.00017681,2]
[357110092,1743748246811,-500.0,0.00017681,2]
[357110094,1743748246822,-500.0,0.00017681,2]
[357110096,1743748246834,-500.0,0.00017681,2]
[357110097,1743748246844,-500.0,0.00017681,2]
[357110098,1743748246855,-500.0,0.00017681,2]
[357110099,1743748246864,-500.0,0.00017681,2]
[357110101,1743748246874,-500.0,0.00017682,2]
[357110103,1743748246884,-500.0,0.00017682,2]
[357110105,1743748246893,-500.0,0.00017682,2]
[357110107,1743748246902,-500.0,0.00017682,2]
[357110109,1743748246912,-791.33,0.00017682,2]
[357110111,1743748246921,-500.0,0.00017682,2]
[357110113,1743748246931,-500.0,0.00017682,2]
[357110115,1743748246942,-500.0,0.00017682,2]
[357110117,1743748246952,-500.0,0.00017682,2]
[357110119,1743748246962,-584.02,0.00017682,2]
[357110121,1743748246971,-500.0,0.00017682,2]
[357110123,1743748246982,-500.0,0.00017682,2]
[357110126,1743748246993,-1040.2,0.00017682,2]
[357110128,1743748247002,-500.0,0.00017682,2]
[357110129,1743748247012,-500.0,0.00017682,2]
[357110131,1743748247023,-500.0,0.00017682,2]
[357110132,1743748247033,-500.0,0.00017682,2]
[357110134,1743748247043,-500.0,0.00017682,2]
[357110136,1743748247053,-500.0,0.00017682,2]
[357110138,1743748247063,-500.0,0.00017682,2]
[357110139,1743748247074,-500.0,0.00017682,2]
[357110140,1743748247084,-1969.45,0.00017682,2]
[357110141,1743748247094,-500.0,0.00017682,2]
[357110142,1743748247104,-500.0,0.00017682,2]
[357110143,1743748247114,-500.0,0.00017683,2]
[357110144,1743748247124,-500.0,0.00017683,2]
[357110145,1743748247135,-500.0,0.00017683,2]
[357110146,1743748247145,-500.0,0.00017683,2]
[357110147,1743748247155,-500.0,0.00017683,2]
[357110148,1743748247165,-555.97,0.00017683,2]
[357110149,1743748247175,-500.0,0.00017683,2]
[357110150,1743748247184,-500.0,0.00017683,2]
[357110151,1743748247195,-500.0,0.00017683,2]
[357110152,1743748247205,-500.0,0.00017683,2]
[357110153,1743748247216,-500.0,0.00017683,2]
[357110154,1743748247225,-500.0,0.00017683,2]
[357110155,1743748247235,-500.0,0.00017683,2]
[357110156,1743748247244,-500.0,0.00017683,2]
[357110157,1743748247254,-616.17,0.00017683,2]
[357110158,1743748247264,-535.45,0.00017683,2]
[357110159,1743748247273,-500.0,0.00017683,2]
[357110160,1743748247283,-500.0,0.00017683,2]
[357110161,1743748247292,-500.0,0.00017683,2]
[357110162,1743748247302,-500.0,0.00017683,2]
[357110163,1743748247311,-545.98,0.00017683,2]
[357110164,1743748247321,-500.0,0.00017683,2]
[357110165,1743748247331,-500.0,0.00017683,2]
[357110166,1743748247341,-500.0,0.00017683,2]
[357110167,1743748247351,-500.0,0.00017683,2]
[357110168,1743748247361,-500.03,0.00017683,2]
[357110169,1743748247370,-500.0,0.00017683,2]
[357110170,1743748247380,-500.0,0.00017683,2]
[357110171,1743748247389,-340.52050501,0.00017683,2]
[357110172,1743748247399,-364.51,0.00017683,2]
[357110173,1743748247409,-500.0,0.00017683,2]
[357110174,1743748247418,-500.0,0.00017683,2]
[357110175,1743748247427,-372.03,0.00017683,2]
[357110176,1743748247438,-500.0,0.00017683,2]
[357110177,1743748247448,-2739.63,0.00017683,2]
[357110178,1743748247458,-1173.54,0.00017683,2]
[357110179,1743748247469,-565.7,0.00017683,2]
[357110180,1743748247479,-500.0,0.00017683,2]
[357110181,1743748247489,-500.0,0.00017683,2]
[357110182,1743748247499,-500.0,0.00017683,2]
[357110183,1743748247508,-500.0,0.00017683,2]
[357110184,1743748247518,-379.51,0.00017683,2]
[357110185,1743748247527,-500.0,0.00017683,2]
[357110186,1743748247537,-465.68,0.00017683,2]
[357110187,1743748247547,-409.51,0.00017683,2]
[357110188,1743748247558,-500.0,0.00017683,2]
[357110189,1743748247567,-500.0,0.00017683,2]
[357110190,1743748247577,-175.06,0.00017683,2]
[357110191,1743748247587,-500.0,0.00017683,2]
[357110192,1743748247597,-500.0,0.00017683,2]
[357110193,1743748247607,-500.0,0.00017683,2]
[357110194,1743748247617,-500.0,0.00017683,2]
[357110195,1743748247626,-500.0,0.00017683,2]
[357110196,1743748247636,-500.0,0.00017683,2]
[357110197,1743748247646,-500.0,0.00017683,2]
[357110198,1743748247656,-599.18,0.00017683,2]
[357110199,1743748247666,-500.0,0.00017683,2]
[357110200,1743748247676,-500.0,0.00017683,2]
[357110201,1743748247686,-511.83,0.00017684,2]
[357110202,1743748247697,-616.9,0.00017684,2]
[357110203,1743748247707,-500.0,0.00017684,2]
[357110204,1743748247715,-500.0,0.00017684,2]
[357110205,1743748247729,-500.0,0.00017684,2]
[357110206,1743748247739,-500.0,0.00017684,2]
[357110207,1743748247749,-551.06,0.00017684,2]
[357110208,1743748247759,-500.0,0.00017684,2]
[357110209,1743748247770,-500.0,0.00017684,2]
[357110210,1743748247779,-154.28,0.00017684,2]
[357110211,1743748247790,-193.16690781,0.00017684,2]
[357110212,1743748247800,-991.266657,0.00017684,2]
[357110213,1743748247810,-991.266665,0.00017684,2]
[357110214,1743748247820,-221.71,0.00017684,2]
[357110215,1743748247829,-518.8951867,0.00017684,2]
[357110216,1743748247839,-500.0,0.00017684,2]
[357110217,1743748247848,-500.0,0.00017684,2]
[357110218,1743748247858,-500.0,0.00017684,2]
[357110219,1743748247867,-500.0,0.00017684,2]
[357110220,1743748247877,-538.27233275,0.00017684,2]
[357110221,1743748247886,-500.0,0.00017684,2]
[357110222,1743748247896,-500.0,0.00017684,2]
[357110223,1743748247905,-180.1,0.00017685,2]
[357110224,1743748247916,-180.1,0.00017685,2]
[357110225,1743748247926,-180.1,0.00017685,2]
[357110226,1743748247936,-180.1,0.00017685,2]
[357110227,1743748247947,-158.322217,0.00017685,2]
[357110228,1743748247956,-3687.37097705,0.000179,2]
[357110229,1743748247969,-800.0,0.00017934,2]
[357110230,1743748247979,-7622.08,0.00017955,2]
[357110231,1743748247989,-500.0,0.00017955,2]
[357110232,1743748247998,-511.23,0.00017955,2]
[357110233,1743748248007,-3003.13,0.00017955,2]
[357110234,1743748248018,-157.23,0.00017955,2]
[357110235,1743748248028,-500.0,0.00017955,2]
[357110236,1743748248038,-500.0,0.00017955,2]
[357110237,1743748248047,-500.0,0.00017955,2]
[357110238,1743748248057,-500.0,0.00017955,2]
[357110239,1743748248068,-500.0,0.00017955,2]
[357110240,1743748248078,-500.0,0.00017955,2]
[357110241,1743748248088,-500.0,0.00017955,2]
[357110242,1743748248098,-500.0,0.00017956,2]
[357110243,1743748248107,-500.0,0.00017956,2]
[357110244,1743748248118,-791.33,0.00017956,2]
[357110245,1743748248127,-500.0,0.00017956,2]
[357110246,1743748248137,-500.0,0.00017956,2]
[357110247,1743748248147,-500.0,0.00017956,2]
[357110248,1743748248156,-500.0,0.00017956,2]
[357110249,1743748248166,-478.44,0.00017956,2]
[357110250,1743748248175,-500.0,0.00017956,2]
[357110251,1743748248183,-1040.2,0.00017956,2]
[357110252,1743748248194,-500.0,0.00017956,2]
[357110253,1743748248203,-500.0,0.00017956,2]
[357110254,1743748248213,-500.0,0.00017956,2]
[357110255,1743748248223,-500.0,0.00017956,2]
[357110256,1743748248232,-500.0,0.00017956,2]
[357110257,1743748248242,-500.0,0.00017956,2]
[357110258,1743748248251,-500.0,0.00017956,2]
[357110259,1743748248261,-289.14,0.00017956,2]
[357110260,1743748248271,-1969.45,0.00017956,2]
[357110261,1743748248280,-354.38744921,0.00017956,2]
[357110262,1743748248290,-500.0,0.00017956,2]
[357110263,1743748248300,-500.0,0.00017957,2]
[357110264,1743748248310,-500.0,0.00017957,2]
[357110265,1743748248320,-601.62,0.00017957,2]
[357110266,1743748248329,-500.0,0.00017957,2]
[357110267,1743748248339,-500.0,0.00017957,2]
[357110268,1743748248349,-500.0,0.00017957,2]
[357110269,1743748248359,-500.0,0.00017957,2]
[357110270,1743748248369,-500.0,0.00017957,2]
[357110271,1743748248378,-500.0,0.00017957,2]
[357110272,1743748248388,-500.0,0.00017957,2]
[357110273,1743748248397,-171.58992146,0.00017957,2]
[357110274,1743748248407,-500.0,0.00017957,2]
[357110275,1743748248417,-363.42,0.00017957,2]
[357110276,1743748248426,-500.0,0.00017957,2]
[357110277,1743748248436,-500.0,0.00017957,2]
[357110278,1743748248447,-500.0,0.00017957,2]
[357110279,1743748248456,-500.0,0.00017957,2]
[357110280,1743748248466,-2739.63,0.00017957,2]
[357110281,1743748248476,-1173.54,0.00017957,2]
[357110282,1743748248486,-500.0,0.00017957,2]
[357110283,1743748248495,-500.0,0.00017957,2]
[357110284,1743748248505,-500.0,0.00017957,2]
[357110285,1743748248515,-500.0,0.00017957,2]
[357110286,1743748248526,-178.65,0.00017957,2]
[357110287,1743748248536,-572.46428754,0.00017957,2]
[357110288,1743748248547,-500.0,0.00017957,2]
[357110289,1743748248556,-502.55999406,0.00017957,2]
[357110290,1743748248566,-500.0,0.00017957,2]
[357110291,1743748248576,-251.01509743,0.00017957,2]
[357110292,1743748248679,-231.29396146,0.00017957,2]
[357110293,1743748248689,-151.0,0.00017958,2]
[357110294,1743748248701,-500.0,0.00017958,2]
[357110295,1743748248711,-500.0,0.00017958,2]
[357110296,1743748248722,-273.8,0.00017958,2]
[357110297,1743748248734,-322.69907711,0.00017958,2]
[357110298,1743748248745,-500.0,0.00017958,2]
[357110299,1743748248756,-500.0,0.00017958,2]
[357110300,1743748248766,-500.59,0.00017958,2]
[357110301,1743748248775,-500.0,0.0001796,2]
[357110302,1743748248786,-500.0,0.0001796,2]
[357110303,1743748248796,-187.04371027,0.00018055,2]
[357110304,1743748248806,-374.08742054,0.00018055,2]
[357110305,1743748248817,-187.04371027,0.00018137,2]
[357110306,1743748248826,-374.08742054,0.00018137,2]
[357110307,1743748248836,-1400.19738531,0.00018171,2]
[357110308,1743748248847,-187.04371027,0.00018219,2]
[357110309,1743748248856,-374.08742054,0.00018219,2]
[357110310,1743748248867,-7622.08,0.00018229,2]
[357110311,1743748248877,-500.0,0.00018229,2]
[357110312,1743748248887,-511.23,0.00018229,2]
[357110313,1743748248897,-3003.13,0.00018229,2]
[357110314,1743748248908,-500.0,0.00018229,2]
[357110315,1743748248918,-500.0,0.00018229,2]
[357110316,1743748248929,-500.0,0.00018229,2]
[357110317,1743748248940,-500.0,0.00018229,2]
[357110318,1743748248950,-500.0,0.00018229,2]
[357110319,1743748248961,-500.0,0.00018229,2]
[357110320,1743748248971,-500.0,0.00018229,2]
[357110321,1743748248981,-500.0,0.0001823,2]
[357110322,1743748248992,-500.0,0.0001823,2]
[357110323,1743748249002,-791.33,0.0001823,2]
[357110324,1743748249012,-500.0,0.0001823,2]
[357110325,1743748249022,-500.0,0.0001823,2]
[357110326,1743748249032,-500.0,0.0001823,2]
[357110327,1743748249042,-1040.2,0.0001823,2]
[357110328,1743748249052,-500.0,0.0001823,2]
[357110329,1743748249063,-452.1,0.0001823,2]
[357110330,1743748249074,-476.82,0.0001823,2]
[357110331,1743748249084,-500.0,0.0001823,2]
[357110332,1743748249095,-500.0,0.0001823,2]
[357110333,1743748249105,-500.0,0.0001823,2]
[357110334,1743748249115,-500.0,0.0001823,2]
[357110335,1743748249124,-1969.45,0.0001823,2]
[357110336,1743748249134,-204.07,0.0001823,2]
[357110337,1743748249144,-500.0,0.00018231,2]
[357110338,1743748249153,-500.0,0.00018231,2]
[357110339,1743748249163,-500.0,0.00018231,2]
[357110340,1743748249173,-500.0,0.00018231,2]
[357110341,1743748249183,-500.0,0.00018231,2]
[357110342,1743748249195,-500.0,0.00018231,2]
[357110343,1743748249204,-500.0,0.00018231,2]
[357110344,1743748249214,-500.0,0.00018231,2]
[357110345,1743748249224,-500.0,0.00018231,2]
[357110346,1743748249233,-500.0,0.00018231,2]
[357110347,1743748249243,-500.0,0.00018231,2]
[357110348,1743748249253,-500.0,0.00018231,2]
[357110349,1743748249263,-2739.63,0.00018231,2]
[357110350,1743748249273,-1173.54,0.00018231,2]
[357110351,1743748249282,-500.0,0.00018231,2]
[357110352,1743748249291,-611.44,0.00018231,2]
[357110353,1743748249302,-500.0,0.00018231,2]
[357110354,1743748249311,-500.0,0.00018231,2]
[357110355,1743748249321,-500.0,0.00018231,2]
[357110356,1743748249331,-500.0,0.00018231,2]
[357110357,1743748249341,-161.5,0.00018232,2]
[357110358,1743748249350,-592.25,0.00018232,2]
[357110359,1743748249360,-593.81612325,0.00018232,2]
[357110360,1743748249369,-151.0,0.000183,2]
[357110361,1743748249379,-187.04371027,0.00018301,2]
[357110362,1743748249388,-374.08742054,0.00018301,2]
[357110363,1743748249398,-187.04371027,0.00018384,2]
[357110364,1743748249408,-374.08742054,0.00018384,2]
[357110365,1743748249417,-29281.36064855,0.00018408,2]
[357110366,1743748249781,-500.0,0.00016859,2]
[357110367,1743748249792,-500.0,0.00016859,2]
[357110368,1743748249802,-500.0,0.00016859,2]
[357110369,1743748249813,-500.0,0.00016859,2]
[357110370,1743748249823,-500.0,0.00016859,2]
[357110371,1743748249833,-500.0,0.00016859,2]
[357110372,1743748249843,-500.0,0.00016859,2]
[357110373,1743748249852,-500.0,0.00016859,2]
[357110374,1743748249862,-500.0,0.00016859,2]
[357110375,1743748249871,-500.0,0.00016859,2]
[357110376,1743748249881,-500.0,0.00016859,2]
[357110377,1743748249890,-500.0,0.00016859,2]
[357110378,1743748249900,-500.0,0.00016859,2]
[357110379,1743748249909,-500.0,0.00016859,2]
[357110380,1743748249919,-500.0,0.00016859,2]
[357110381,1743748249928,-500.0,0.00016859,2]
[357110382,1743748249938,-500.0,0.00016859,2]
[357110383,1743748249949,-500.0,0.00016861,2]
[357110384,1743748249959,-500.0,0.00017133,2]
[357110385,1743748249969,-500.0,0.00017133,2]
[357110386,1743748249979,-500.0,0.00017135,2]
[357110387,1743748249989,-500.0,0.00017407,2]
[357110388,1743748249999,-500.0,0.00017407,2]
[357110389,1743748250009,-500.0,0.00017409,2]
[357110390,1743748250019,-500.0,0.00017681,2]
[357110391,1743748250029,-500.0,0.00017681,2]
[357110392,1743748250038,-500.0,0.00017683,2]
[357110393,1743748250048,-500.0,0.00017955,2]
[357110394,1743748250057,-246.78,0.00017955,2]
[357110395,1743748250067,-500.0,0.00017957,2]
[357110396,1743748250077,-500.0,0.00018229,2]
[357110397,1743748250087,-500.0,0.00018231,2]
[357110398,1743748250096,-37182.87204725,0.00018408,2]
[357110399,1743748250173,-501.24530807,0.00016859,2]
[357110400,1743748250183,-303535.7673042,0.00018408,2]
[357110401,1743748250193,-227.186932,0.00018408,2]
[357110402,1743748250202,-420.0,0.00018415,2]
[357110403,1743748250212,-241.72253076,0.00018421,2]
[357110404,1743748250222,-187.04371027,0.00018466,2]
[357110405,1743748250231,-374.08742054,0.00018466,2]
[357110406,1743748250241,-1200.0,0.00018482,2]
[357110407,1743748250251,-7622.08,0.00018503,2]
[357110408,1743748250261,-500.0,0.00018503,2]
[357110409,1743748250270,-511.23,0.00018503,2]
[357110410,1743748250279,-3003.13,0.00018503,2]
[357110411,1743748250290,-500.0,0.00018503,2]
[357110412,1743748250300,-500.0,0.00018503,2]
[357110413,1743748250310,-500.0,0.00018503,2]
[357110414,1743748250320,-500.0,0.00018503,2]
[357110415,1743748250330,-500.0,0.00018503,2]
[357110416,1743748250340,-500.0,0.00018503,2]
[357110417,1743748250350,-261.26,0.00018503,2]
[357110418,1743748250360,-500.0,0.00018504,2]
[357110419,1743748250369,-791.33,0.00018504,2]
[357110420,1743748250379,-500.0,0.00018504,2]
[357110421,1743748250388,-500.0,0.00018504,2]
[357110422,1743748250399,-500.0,0.00018504,2]
[357110423,1743748250409,-1040.2,0.00018504,2]
[357110424,1743748250419,-617.84653826,0.00018504,2]
[357110425,1743748250429,-500.0,0.00018504,2]
[357110426,1743748250439,-500.0,0.00018504,2]
[357110427,1743748250449,-500.0,0.00018504,2]
[357110428,1743748250460,-500.0,0.00018504,2]
[357110429,1743748250470,-1969.45,0.00018504,2]
[357110430,1743748250480,-500.0,0.00018505,2]
[357110431,1743748250490,-483.39,0.00018505,2]
[357110432,1743748250500,-296.86,0.00018505,2]
[357110433,1743748250509,-500.0,0.00018505,2]
[357110434,1743748250519,-467.59,0.00018505,2]
[357110435,1743748250528,-376.54,0.00018505,2]
[357110436,1743748250538,-500.0,0.00018505,2]
[357110437,1743748250641,-500.0,0.00018505,2]
[357110438,1743748250652,-2739.63,0.00018505,2]
[357110439,1743748250662,-1173.54,0.00018505,2]
[357110440,1743748250671,-500.0,0.00018505,2]
[357110441,1743748250681,-500.0,0.00018505,2]
[357110442,1743748250691,-500.0,0.00018505,2]
[357110443,1743748250701,-500.0,0.00018505,2]
[357110444,1743748250710,-500.0,0.00018505,2]
[357110445,1743748250720,-500.0,0.00018505,2]
[357110446,1743748250732,-5097.011475,0.0001854,2]
[357110447,1743748250742,-187.04371027,0.00018575,2]
[357110448,1743748250752,-374.08742054,0.00018575,2]
[357110449,1743748250762,-548.3615734,0.00018612,2]
[357110450,1743748250772,-187.04371027,0.00018658,2]
[357110451,1743748250783,-374.08742054,0.00018658,2]
[357110452,1743748250792,-187.04371027,0.0001874,2]
[357110453,1743748250802,-374.08742054,0.0001874,2]
[357110454,1743748250813,-3687.37097695,0.00018762,2]
[357110455,1743748250822,-7622.08,0.00018777,2]
[357110456,1743748250832,-500.0,0.00018777,2]
[357110457,1743748250842,-511.23,0.00018777,2]
[357110458,1743748250852,-3003.13,0.00018777,2]
[357110459,1743748250862,-500.0,0.00018777,2]
[357110460,1743748250871,-500.0,0.00018777,2]
[357110461,1743748250881,-500.0,0.00018777,2]
[357110462,1743748250891,-500.0,0.00018777,2]
[357110463,1743748250900,-500.0,0.00018777,2]
[357110464,1743748250909,-467.64,0.00018777,2]
[357110465,1743748250919,-330.61,0.00018778,2]
[357110466,1743748250929,-791.33,0.00018778,2]
[357110467,1743748250938,-500.0,0.00018778,2]
[357110468,1743748250948,-500.0,0.00018778,2]
[357110469,1743748250958,-500.0,0.00018778,2]
[357110470,1743748250968,-1040.2,0.00018778,2]
[357110471,1743748250977,-621.24,0.00018778,2]
[357110472,1743748250987,-500.0,0.00018778,2]
[357110473,1743748250996,-500.0,0.00018778,2]
[357110474,1743748251007,-500.0,0.00018778,2]
[357110475,1743748251016,-1969.45,0.00018778,2]
[357110476,1743748251027,-500.0,0.00018779,2]
[357110478,1743748251036,-411.02,0.00018779,2]
[357110479,1743748251046,-500.0,0.00018779,2]
[357110480,1743748251056,-2739.63,0.00018779,2]
[357110481,1743748251065,-1173.54,0.00018779,2]
[357110482,1743748251075,-500.0,0.00018779,2]
[357110483,1743748251085,-500.0,0.00018779,2]
[357110484,1743748251094,-300.0,0.000188,2]
[357110485,1743748251104,-187.04371027,0.00018822,2]
[357110486,1743748251114,-374.08742054,0.00018822,2]
[357110487,1743748251123,-1746.03402216,0.00018879,2]
[357110488,1743748251133,-187.04371027,0.00018904,2]
[357110489,1743748251143,-374.08742054,0.00018904,2]
[357110490,1743748251152,-187.04371027,0.00019014,2]
[357110491,1743748251162,-374.08742054,0.00019014,2]
[357110492,1743748251172,-1600.0,0.0001903,2]
[357110493,1743748251181,-7622.08,0.00019051,2]
[357110494,1743748251190,-511.23,0.00019051,2]
[357110495,1743748251200,-3003.13,0.00019051,2]
[357110496,1743748251210,-500.0,0.00019051,2]
[357110497,1743748251219,-563.43,0.00019051,2]
[357110498,1743748251228,-500.0,0.00019051,2]
[357110499,1743748251238,-500.0,0.00019051,2]
[357110500,1743748251247,-791.33,0.00019052,2]
[357110501,1743748251257,-1040.2,0.00019052,2]
[357110502,1743748251267,-500.0,0.00019052,2]
[357110503,1743748251276,-500.0,0.00019052,2]
[357110504,1743748251286,-1969.45,0.00019052,2]
[357110505,1743748251296,-2739.63,0.00019053,2]
[357110506,1743748251305,-1173.54,0.00019053,2]
[357110507,1743748251315,-450.95,0.00019053,2]
[357110508,1743748251325,-401.0,0.00019112,2]
[357110509,1743748251335,-152.666,0.00019112,2]
[357110510,1743748251344,-151.0,0.00019178,2]
[357110511,1743748251354,-162.17400001,0.00019233,2]
[357110512,1743748251363,-675.2172587,0.0001927,2]
[357110513,1743748251373,-7622.08,0.00019325,2]
[357110514,1743748251382,-511.23,0.00019325,2]
[357110515,1743748251391,-3003.13,0.00019325,2]
[357110516,1743748251401,-500.0,0.00019325,2]
[357110517,1743748251411,-500.0,0.00019325,2]
[357110518,1743748251420,-791.33,0.00019326,2]
[357110519,1743748251430,-1040.2,0.00019326,2]
[357110520,1743748251440,-500.0,0.00019326,2]
[357110521,1743748251449,-515.14,0.00019326,2]
[357110522,1743748251459,-1969.45,0.00019326,2]
[357110523,1743748251469,-2739.63,0.00019327,2]
[357110524,1743748251479,-1173.54,0.00019327,2]
[357110525,1743748251488,-151.0,0.000195,2]
[357110526,1743748251497,-2000.0,0.00019578,2]
[357110527,1743748251506,-7622.08,0.00019599,2]
[357110528,1743748251515,-511.23,0.00019599,2]
[357110529,1743748251524,-3003.13,0.00019599,2]
[357110530,1743748251534,-500.0,0.00019599,2]
[357110531,1743748251543,-500.0,0.00019599,2]
[357110532,1743748251552,-791.33,0.000196,2]
[357110533,1743748251561,-1040.2,0.000196,2]
[357110534,1743748251571,-500.0,0.000196,2]
[357110535,1743748251581,-1969.45,0.000196,2]
[357110536,1743748251590,-2739.63,0.00019601,2]
[357110537,1743748251599,-1173.54,0.00019601,2]
[357110538,1743748251608,-3687.37097695,0.00019624,2]
[357110539,1743748251617,-7622.08,0.00019873,2]
[357110540,1743748251627,-511.23,0.00019873,2]
[357110541,1743748251636,-3003.13,0.00019873,2]
[357110542,1743748251646,-500.0,0.00019873,2]
[357110543,1743748251655,-500.0,0.00019873,2]
[357110544,1743748251664,-791.33,0.00019874,2]
[357110545,1743748251673,-1040.2,0.00019874,2]
[357110546,1743748251683,-500.0,0.00019874,2]
[357110547,1743748251693,-1969.45,0.00019874,2]
[357110548,1743748251702,-2739.63,0.00019875,2]
[357110549,1743748251712,-1173.54,0.00019875,2]
[357110550,1743748251722,-1400.0,0.0002,2]
[357110551,1743748251734,-151.0,0.0002,2]
[357110552,1743748251743,-180.35557763,0.0002,2]
[357110553,1743748251752,-2000.0,0.0002,4]
[357110554,1743748251761,-2400.0,0.00020126,2]
[357110555,1743748251773,-7622.08,0.00020147,2]
[357110556,1743748251782,-511.23,0.00020147,2]
[357110557,1743748251791,-3003.13,0.00020147,2]
[357110558,1743748251801,-500.0,0.00020147,2]
[357110559,1743748251812,-500.0,0.00020147,2]
[357110560,1743748251822,-791.33,0.00020148,2]
[357110561,1743748251831,-1040.2,0.00020148,2]
[357110562,1743748251841,-500.0,0.00020148,2]
[357110563,1743748251850,-1969.45,0.00020148,2]
[357110564,1743748251859,-2739.63,0.00020149,2]
[357110565,1743748251869,-1173.54,0.00020149,2]
[357110566,1743748251878,-175.06358336,0.00020324,2]
[357110567,1743748251887,-7622.08,0.00020421,2]
[357110568,1743748251897,-511.23,0.00020421,2]
[357110569,1743748251906,-3003.13,0.00020421,2]
[357110570,1743748251916,-500.0,0.00020421,2]
[357110571,1743748251925,-500.0,0.00020421,2]
[357110572,1743748251935,-791.33,0.00020422,2]
[357110573,1743748251944,-1040.2,0.00020422,2]
[357110574,1743748251954,-500.0,0.00020422,2]
[357110575,1743748251964,-1969.45,0.00020422,2]
[357110576,1743748251973,-2739.63,0.00020423,2]
[357110577,1743748251982,-1173.54,0.00020423,2]
[357110578,1743748251992,-3687.37097695,0.00020486,2]
[357110579,1743748252001,-151.0,0.000205,3]
[357110580,1743748252011,-46074.892733,0.00020641,2]
[357110581,1743748252020,-2800.0,0.00020674,2]
[357110582,1743748252029,-7622.08,0.00020695,2]
[357110583,1743748252038,-511.23,0.00020695,2]
[357110584,1743748252048,-3003.13,0.00020695,2]
[357110585,1743748252057,-205.69,0.00020695,2]
[357110586,1743748252067,-381.29,0.00020695,2]
[357110587,1743748252076,-791.33,0.00020696,2]
[357110588,1743748252085,-1040.2,0.00020696,2]
[357110589,1743748252095,-500.0,0.00020696,2]
[357110590,1743748252105,-1969.45,0.00020696,2]
[357110591,1743748252114,-2739.63,0.00020697,2]
[357110592,1743748252123,-1173.54,0.00020697,2]
[357110593,1743748252132,-151.0,0.000207,4]
[357110594,1743748252141,-11511.42,0.0002085,2]
[357110595,1743748252150,-23154.95,0.0002085,2]
[357110596,1743748252159,-178.46925167,0.00020869,2]
[357110597,1743748252168,-23005.09244724,0.00020957,2]
[357110598,1743748252178,-7622.08,0.00020969,2]
[357110599,1743748252187,-511.23,0.00020969,2]
[357110600,1743748252196,-3003.13,0.00020969,2]
[357110601,1743748252205,-791.33,0.0002097,2]
[357110602,1743748252214,-1040.2,0.0002097,2]
[357110603,1743748252224,-500.0,0.0002097,2]
[357110604,1743748252233,-1969.45,0.0002097,2]
[357110605,1743748252242,-2739.63,0.00020971,2]
[357110606,1743748252251,-1173.54,0.00020971,2]